[Event "Titled Tuesday Blitz April 05 Late 2022"]
[White "Almagro Mazariegos, Sebastian"]
[Black "Johnson, Ben"]
[WhiteFideId "2221640"]
[BlackFideId "2010917"]
[WhiteElo "2273"]
[BlackElo "2151"]
[Result "1/2-1/2"]
[Round "03"]
[TimeControl "180+1"]
[Date "2022.04.06"]
[WhiteClock "0:00:31"]
[BlackClock "0:00:05"]

1. e4 {[%clk 0:03:00]}  c5 {[%clk 0:03:00]} 2. Nf3 {[%clk 0:03:00]}  Nc6 {[%clk 0:03:00]} 3. d4 {[%clk 0:02:59]}  cxd4 {[%clk 0:03:01]} 4. Nxd4 {[%clk 0:03:00]}  Nf6 {[%clk 0:03:01]} 5. Nc3 {[%clk 0:03:00]}  e5 {[%clk 0:03:02]} 6. Ndb5 {[%clk 0:03:00]}  d6 {[%clk 0:03:03]} 7. Bg5 {[%clk 0:03:00]}  a6 {[%clk 0:03:03]} 8. Na3 {[%clk 0:03:00]}  b5 {[%clk 0:03:04]} 9. Nd5 {[%clk 0:03:01]}  Be7 {[%clk 0:03:03]} 10. Bxf6 {[%clk 0:03:01]}  Bxf6 {[%clk 0:03:04]} 11. c4 {[%clk 0:03:01]}  b4 {[%clk 0:03:04]} 12. Nc2 {[%clk 0:03:02]}  O-O {[%clk 0:03:04]} 13. g3 {[%clk 0:03:02]}  a5 {[%clk 0:03:03]} 14. Bg2 {[%clk 0:03:03]}  Bg5 {[%clk 0:03:01]} 15. O-O {[%clk 0:03:02]}  Be6 {[%clk 0:02:58]} 16. b3 {[%clk 0:03:02]}  Ne7 {[%clk 0:02:50]} 17. Nxe7+ {[%clk 0:02:58]}  Qxe7 {[%clk 0:02:43]} 18. Qd3 {[%clk 0:02:59]}  g6 {[%clk 0:02:35]} 19. a3 {[%clk 0:02:32]}  bxa3 {[%clk 0:02:26]} 20. Rxa3 {[%clk 0:02:33]}  Ra7 {[%clk 0:01:33]} 21. Rfa1 {[%clk 0:02:30]}  Qc7 {[%clk 0:01:33]} 22. Bf1 {[%clk 0:02:16]}  Rb8 {[%clk 0:01:26]} 23. b4 {[%clk 0:02:08]}  Rc8 {[%clk 0:00:49]} 24. Rxa5 {[%clk 0:02:03]}  Rxa5 {[%clk 0:00:47]} 25. bxa5 {[%clk 0:02:03]}  Bxc4 {[%clk 0:00:43]} 26. Qxc4 {[%clk 0:02:03]}  Qxc4 {[%clk 0:00:44]} 27. Bxc4 {[%clk 0:02:03]}  Rxc4 {[%clk 0:00:45]} 28. a6 {[%clk 0:02:00]}  Rxc2 {[%clk 0:00:40]} 29. a7 {[%clk 0:01:59]}  Rc8 {[%clk 0:00:40]} 30. a8=Q {[%clk 0:01:59]}  Rxa8 {[%clk 0:00:41]} 31. Rxa8+ {[%clk 0:01:58]}  Kg7 {[%clk 0:00:39]} 32. Kf1 {[%clk 0:01:51]}  Bd2 {[%clk 0:00:38]} 33. Rb8 {[%clk 0:01:39]}  Bc1 {[%clk 0:00:34]} 34. Rb3 {[%clk 0:01:35]}  Kf6 {[%clk 0:00:31]} 35. Ke2 {[%clk 0:01:34]}  Ke6 {[%clk 0:00:30]} 36. Kd3 {[%clk 0:01:34]}  f5 {[%clk 0:00:27]} 37. f3 {[%clk 0:01:32]}  Bg5 {[%clk 0:00:24]} 38. Kc4 {[%clk 0:01:27]}  Bd8 {[%clk 0:00:22]} 39. Rb7 {[%clk 0:01:25]}  h5 {[%clk 0:00:20]} 40. h3 {[%clk 0:01:24]}  Bf6 {[%clk 0:00:17]} 41. Kb5 {[%clk 0:01:19]}  Be7 {[%clk 0:00:16]} 42. Kc6 {[%clk 0:01:19]}  Bf8 {[%clk 0:00:07]} 43. Rh7 {[%clk 0:01:16]}  Be7 {[%clk 0:00:05]} 44. Rh8 {[%clk 0:01:13]}  Bf6 {[%clk 0:00:05]} 45. Ra8 {[%clk 0:01:04]}  f4 {[%clk 0:00:02]} 46. g4 {[%clk 0:01:02]}  hxg4 {[%clk 0:00:02]} 47. hxg4 {[%clk 0:01:02]}  Bh4 {[%clk 0:00:03]} 48. Re8+ {[%clk 0:00:52]}  Kf7 {[%clk 0:00:02]} 49. Kd7 {[%clk 0:00:52]}  Bf2 {[%clk 0:00:01]} 50. Re6 {[%clk 0:00:47]}  Bd4 {[%clk 0:00:02]} 51. Rxd6 {[%clk 0:00:46]}  Bc3 {[%clk 0:00:02]} 52. Rc6 {[%clk 0:00:41]}  Bb2 {[%clk 0:00:02]} 53. Kd6 {[%clk 0:00:39]}  Kf6 {[%clk 0:00:02]} 54. Kd5+ {[%clk 0:00:35]}  Kg5 {[%clk 0:00:02]} 55. Re6 {[%clk 0:00:34]}  Kh4 {[%clk 0:00:02]} 56. Rxe5 {[%clk 0:00:34]}  Bxe5 {[%clk 0:00:03]} 57. Kxe5 {[%clk 0:00:34]}  Kg3 {[%clk 0:00:04]} 58. Kf6 {[%clk 0:00:33]}  Kxf3 {[%clk 0:00:03]} 59. e5 {[%clk 0:00:33]}  Kxg4 {[%clk 0:00:03]} 60. e6 {[%clk 0:00:33]}  f3 {[%clk 0:00:04]} 61. e7 {[%clk 0:00:33]}  f2 {[%clk 0:00:05]} 62. e8=Q {[%clk 0:00:33]}  f1=Q+ {[%clk 0:00:06]} 63. Kxg6 {[%clk 0:00:33]}  Qf5+ {[%clk 0:00:06]} 64. Kg7 {[%clk 0:00:33]}  Qg5+ {[%clk 0:00:06]} 65. Qg6 {[%clk 0:00:32]}  Qxg6+ {[%clk 0:00:05]} 66. Kxg6 {[%clk 0:00:31]} 1/2-1/2


[Site "https://www.chess.com"]

[Event "Titled Tuesday Blitz April 05 Late 2022"]
[White "Andreikin, Dmitry"]
[Black "Hambleton, Aman"]
[WhiteFideId "4158814"]
[BlackFideId "2606577"]
[WhiteElo "2736"]
[BlackElo "2552"]
[Result "1-0"]
[Round "03"]
[TimeControl "180+1"]
[Date "2022.04.05"]
[WhiteClock "0:01:15"]
[BlackClock "0:00:02"]

1. d4 {[%clk 0:03:00]}  Nf6 {[%clk 0:02:55]} 2. c4 {[%clk 0:03:00]}  e6 {[%clk 0:02:49]} 3. Nf3 {[%clk 0:03:00]}  b6 {[%clk 0:02:46]} 4. a3 {[%clk 0:02:55]}  Bb7 {[%clk 0:02:43]} 5. Nc3 {[%clk 0:02:55]}  Ne4 {[%clk 0:02:36]} 6. Nxe4 {[%clk 0:02:53]}  Bxe4 {[%clk 0:02:37]} 7. Nd2 {[%clk 0:02:53]}  Bb7 {[%clk 0:02:35]} 8. e4 {[%clk 0:02:51]}  g6 {[%clk 0:02:27]} 9. Bd3 {[%clk 0:02:50]}  Bg7 {[%clk 0:02:27]} 10. Nf3 {[%clk 0:02:49]}  d6 {[%clk 0:02:15]} 11. Bg5 {[%clk 0:02:46]}  Qc8 {[%clk 0:02:07]} 12. Qd2 {[%clk 0:02:45]}  Nd7 {[%clk 0:02:04]} 13. Bh6 {[%clk 0:02:40]}  Bxh6 {[%clk 0:02:01]} 14. Qxh6 {[%clk 0:02:41]}  Qd8 {[%clk 0:02:02]} 15. h4 {[%clk 0:02:34]}  Qf6 {[%clk 0:01:12]} 16. O-O-O {[%clk 0:02:34]}  O-O-O {[%clk 0:01:10]} 17. Bc2 {[%clk 0:02:34]}  Qe7 {[%clk 0:00:57]} 18. Rh3 {[%clk 0:02:29]}  Kb8 {[%clk 0:00:50]} 19. Qg5 {[%clk 0:02:27]}  f6 {[%clk 0:00:49]} 20. Qe3 {[%clk 0:02:26]}  e5 {[%clk 0:00:45]} 21. d5 {[%clk 0:02:22]}  Bc8 {[%clk 0:00:43]} 22. Rhh1 {[%clk 0:02:18]}  Rhf8 {[%clk 0:00:40]} 23. h5 {[%clk 0:02:17]}  f5 {[%clk 0:00:33]} 24. hxg6 {[%clk 0:02:16]}  f4 {[%clk 0:00:32]} 25. Qc3 {[%clk 0:02:11]}  hxg6 {[%clk 0:00:32]} 26. b4 {[%clk 0:02:11]}  g5 {[%clk 0:00:32]} 27. Nd2 {[%clk 0:02:10]}  Rh8 {[%clk 0:00:30]} 28. Ba4 {[%clk 0:02:10]}  Nf6 {[%clk 0:00:27]} 29. f3 {[%clk 0:02:05]}  g4 {[%clk 0:00:23]} 30. c5 {[%clk 0:02:04]}  gxf3 {[%clk 0:00:17]} 31. gxf3 {[%clk 0:02:03]}  Nh5 {[%clk 0:00:12]} 32. Nb3 {[%clk 0:01:59]}  Ng3 {[%clk 0:00:11]} 33. Rhe1 {[%clk 0:01:56]}  Rh2 {[%clk 0:00:10]} 34. Rd2 {[%clk 0:01:52]}  Rdh8 {[%clk 0:00:06]} 35. Na5 {[%clk 0:01:45]}  bxa5 {[%clk 0:00:05]} 36. bxa5 {[%clk 0:01:45]}  Ba6 {[%clk 0:00:03]} 37. Kb2 {[%clk 0:01:35]}  Rxd2+ {[%clk 0:00:03]} 38. Qxd2 {[%clk 0:01:36]}  Ka8 {[%clk 0:00:03]} 39. Bc6+ {[%clk 0:01:21]}  Bb7 {[%clk 0:00:03]} 40. Bxb7+ {[%clk 0:01:20]}  Kxb7 {[%clk 0:00:04]} 41. Ka2 {[%clk 0:01:19]}  Rb8 {[%clk 0:00:03]} 42. Rb1+ {[%clk 0:01:15]}  Kc8 {[%clk 0:00:03]} 43. Rxb8+ {[%clk 0:01:15]}  Kxb8 {[%clk 0:00:04]} 44. Qb4+ {[%clk 0:01:14]}  Kc8 {[%clk 0:00:02]} 45. c6 {[%clk 0:01:15]} 1-0


[Site "https://www.chess.com"]

[Event "Titled Tuesday Blitz April 05 Late 2022"]
[White "Andrews, Todd"]
[Black "Adewumi, Tanitoluwa"]
[WhiteFideId "2012456"]
[BlackFideId "30966396"]
[WhiteElo "2289"]
[BlackElo "2547"]
[Result "1/2-1/2"]
[Round "03"]
[TimeControl "180+1"]
[Date "2022.04.06"]
[WhiteClock "0:00:05"]
[BlackClock "0:00:03"]

1. e4 {[%clk 0:03:00]}  c5 {[%clk 0:02:59]} 2. Nf3 {[%clk 0:03:00]}  Nc6 {[%clk 0:02:57]} 3. d4 {[%clk 0:03:00]}  cxd4 {[%clk 0:02:55]} 4. Nxd4 {[%clk 0:03:01]}  Nf6 {[%clk 0:02:50]} 5. Nc3 {[%clk 0:03:01]}  e6 {[%clk 0:02:51]} 6. Ndb5 {[%clk 0:02:58]}  d6 {[%clk 0:02:51]} 7. Bf4 {[%clk 0:02:57]}  e5 {[%clk 0:02:50]} 8. Bg5 {[%clk 0:02:58]}  a6 {[%clk 0:02:48]} 9. Na3 {[%clk 0:02:59]}  Be7 {[%clk 0:02:46]} 10. Bxf6 {[%clk 0:02:57]}  Bxf6 {[%clk 0:02:46]} 11. Nc4 {[%clk 0:02:55]}  Be7 {[%clk 0:02:45]} 12. Nd5 {[%clk 0:02:54]}  Be6 {[%clk 0:02:34]} 13. Nxe7 {[%clk 0:02:28]}  Kxe7 {[%clk 0:02:35]} 14. Ne3 {[%clk 0:02:26]}  Qb6 {[%clk 0:02:24]} 15. Bd3 {[%clk 0:02:11]}  Qb4+ {[%clk 0:02:08]} 16. Qd2 {[%clk 0:02:07]}  Qxd2+ {[%clk 0:02:05]} 17. Kxd2 {[%clk 0:02:08]}  Rhd8 {[%clk 0:02:04]} 18. c3 {[%clk 0:01:56]}  d5 {[%clk 0:01:53]} 19. exd5 {[%clk 0:01:56]}  Bxd5 {[%clk 0:01:53]} 20. Nxd5+ {[%clk 0:01:54]}  Rxd5 {[%clk 0:01:54]} 21. Ke2 {[%clk 0:01:55]}  Rad8 {[%clk 0:01:52]} 22. Rad1 {[%clk 0:01:55]}  g6 {[%clk 0:01:47]} 23. Be4 {[%clk 0:01:40]}  Rb5 {[%clk 0:01:46]} 24. Rxd8 {[%clk 0:01:36]}  Nxd8 {[%clk 0:01:45]} 25. b3 {[%clk 0:01:34]}  f5 {[%clk 0:01:45]} 26. c4 {[%clk 0:01:27]}  Ra5 {[%clk 0:01:37]} 27. Bb1 {[%clk 0:01:27]}  Nc6 {[%clk 0:01:35]} 28. Kd2 {[%clk 0:01:15]}  Rc5 {[%clk 0:01:19]} 29. h4 {[%clk 0:01:09]}  h5 {[%clk 0:01:14]} 30. Re1 {[%clk 0:01:06]}  Kd6 {[%clk 0:01:07]} 31. Kc3 {[%clk 0:01:03]}  b5 {[%clk 0:01:05]} 32. Rd1+ {[%clk 0:00:59]}  Ke6 {[%clk 0:00:54]} 33. Bd3 {[%clk 0:00:53]}  b4+ {[%clk 0:00:53]} 34. Kb2 {[%clk 0:00:51]}  a5 {[%clk 0:00:42]} 35. Bf1 {[%clk 0:00:42]}  Ne7 {[%clk 0:00:24]} 36. Rd8 {[%clk 0:00:40]}  Rc8 {[%clk 0:00:19]} 37. Rd2 {[%clk 0:00:31]}  Nc6 {[%clk 0:00:17]} 38. g3 {[%clk 0:00:32]}  Rd8 {[%clk 0:00:15]} 39. Rxd8 {[%clk 0:00:25]}  Nxd8 {[%clk 0:00:16]} 40. a3 {[%clk 0:00:20]}  Nc6 {[%clk 0:00:16]} 41. axb4 {[%clk 0:00:19]}  axb4 {[%clk 0:00:17]} 42. Bg2 {[%clk 0:00:19]}  Nd4 {[%clk 0:00:16]} 43. Bd5+ {[%clk 0:00:17]}  Ke7 {[%clk 0:00:11]} 44. c5 {[%clk 0:00:14]}  e4 {[%clk 0:00:09]} 45. Kc1 {[%clk 0:00:14]}  Kf6 {[%clk 0:00:06]} 46. Kd2 {[%clk 0:00:13]}  Ke5 {[%clk 0:00:06]} 47. Bf7 {[%clk 0:00:13]}  Kf6 {[%clk 0:00:05]} 48. Bc4 {[%clk 0:00:12]}  Nc6 {[%clk 0:00:03]} 49. Ke3 {[%clk 0:00:12]}  Ke5 {[%clk 0:00:03]} 50. f4+ {[%clk 0:00:11]}  exf3 {[%clk 0:00:02]} 51. Kxf3 {[%clk 0:00:11]}  Nd4+ {[%clk 0:00:03]} 52. Ke3 {[%clk 0:00:11]}  Nc6 {[%clk 0:00:03]} 53. Bf7 {[%clk 0:00:10]}  Ne7 {[%clk 0:00:04]} 54. Kd3 {[%clk 0:00:09]}  f4 {[%clk 0:00:04]} 55. gxf4+ {[%clk 0:00:08]}  Kxf4 {[%clk 0:00:05]} 56. Kc4 {[%clk 0:00:08]}  g5 {[%clk 0:00:04]} 57. hxg5 {[%clk 0:00:08]}  Kxg5 {[%clk 0:00:05]} 58. Bxh5 {[%clk 0:00:07]}  Kxh5 {[%clk 0:00:06]} 59. Kxb4 {[%clk 0:00:07]}  Kg6 {[%clk 0:00:07]} 60. Kb5 {[%clk 0:00:07]}  Kf6 {[%clk 0:00:07]} 61. Kb6 {[%clk 0:00:08]}  Ke6 {[%clk 0:00:08]} 62. b4 {[%clk 0:00:09]}  Kd7 {[%clk 0:00:08]} 63. b5 {[%clk 0:00:10]}  Kc8 {[%clk 0:00:07]} 64. Ka7 {[%clk 0:00:10]}  Nd5 {[%clk 0:00:02]} 65. b6 {[%clk 0:00:09]}  Kd7 {[%clk 0:00:02]} 66. b7 {[%clk 0:00:08]}  Ne7 {[%clk 0:00:03]} 67. Kb6 {[%clk 0:00:06]}  Nc6 {[%clk 0:00:03]} 68. Kb5 {[%clk 0:00:06]}  Kc7 {[%clk 0:00:03]} 69. Ka6 {[%clk 0:00:06]}  Nb8+ {[%clk 0:00:03]} 70. Ka7 {[%clk 0:00:06]}  Nc6+ {[%clk 0:00:02]} 71. Ka8 {[%clk 0:00:06]}  Nb8 {[%clk 0:00:02]} 72. Ka7 {[%clk 0:00:06]}  Nc6+ {[%clk 0:00:03]} 73. Ka8 {[%clk 0:00:05]}  Nb8 {[%clk 0:00:03]} 74. c6 {[%clk 0:00:05]}  Nxc6 {[%clk 0:00:03]} 75. b8=Q+ {[%clk 0:00:05]}  Nxb8 {[%clk 0:00:03]} 1/2-1/2


[Site "https://www.chess.com"]

[Event "Titled Tuesday Blitz April 05 Late 2022"]
[White "Ansh M Shah"]
[Black "Unver, Cumali"]
[WhiteFideId "25033379"]
[BlackFideId "6304940"]
[WhiteElo "1819"]
[BlackElo "2013"]
[Result "1-0"]
[Round "03"]
[TimeControl "180+1"]
[Date "2022.04.06"]
[WhiteClock "0:00:17"]
[BlackClock "0:00:01"]

1. d4 {[%clk 0:03:00]}  Nf6 {[%clk 0:02:59]} 2. c4 {[%clk 0:03:01]}  g6 {[%clk 0:02:58]} 3. Nc3 {[%clk 0:03:01]}  Bg7 {[%clk 0:02:59]} 4. e4 {[%clk 0:03:02]}  d6 {[%clk 0:02:59]} 5. Nge2 {[%clk 0:03:02]}  O-O {[%clk 0:02:59]} 6. f3 {[%clk 0:03:03]}  Nc6 {[%clk 0:02:54]} 7. Be3 {[%clk 0:03:03]}  a6 {[%clk 0:02:53]} 8. Qd2 {[%clk 0:03:04]}  Rb8 {[%clk 0:02:53]} 9. h3 {[%clk 0:02:58]}  Re8 {[%clk 0:02:50]} 10. d5 {[%clk 0:02:55]}  Ne5 {[%clk 0:02:48]} 11. Nd4 {[%clk 0:02:55]}  c5 {[%clk 0:02:47]} 12. dxc6 {[%clk 0:02:56]}  Nxc6 {[%clk 0:02:47]} 13. Be2 {[%clk 0:02:52]}  Nh5 {[%clk 0:02:32]} 14. O-O {[%clk 0:02:42]}  Ng3 {[%clk 0:02:31]} 15. Rfd1 {[%clk 0:02:40]}  Nxe2+ {[%clk 0:02:31]} 16. Ncxe2 {[%clk 0:02:41]}  Nxd4 {[%clk 0:02:28]} 17. Nxd4 {[%clk 0:02:42]}  b5 {[%clk 0:02:28]} 18. cxb5 {[%clk 0:02:41]}  axb5 {[%clk 0:02:28]} 19. Nc6 {[%clk 0:02:41]}  Qc7 {[%clk 0:02:19]} 20. Nxb8 {[%clk 0:02:36]}  Qxb8 {[%clk 0:02:20]} 21. Bd4 {[%clk 0:02:30]}  Bxd4+ {[%clk 0:01:39]} 22. Qxd4 {[%clk 0:02:29]}  Be6 {[%clk 0:01:40]} 23. a4 {[%clk 0:02:06]}  bxa4 {[%clk 0:00:58]} 24. Rxa4 {[%clk 0:02:07]}  Qb3 {[%clk 0:00:48]} 25. Rb4 {[%clk 0:02:01]}  Qc2 {[%clk 0:00:44]} 26. Qd2 {[%clk 0:01:22]}  Qc5+ {[%clk 0:00:40]} 27. Kh1 {[%clk 0:01:22]}  Qh5 {[%clk 0:00:34]} 28. Rd4 {[%clk 0:00:50]}  Rb8 {[%clk 0:00:17]} 29. f4 {[%clk 0:00:37]}  Rb3 {[%clk 0:00:10]} 30. Rd3 {[%clk 0:00:34]}  Rb5 {[%clk 0:00:08]} 31. Rg3 {[%clk 0:00:32]}  Qc5 {[%clk 0:00:04]} 32. f5 {[%clk 0:00:30]}  Bd7 {[%clk 0:00:02]} 33. fxg6 {[%clk 0:00:28]}  hxg6 {[%clk 0:00:01]} 34. Qd4 {[%clk 0:00:28]}  Qe5 {[%clk 0:00:02]} 35. Qxe5 {[%clk 0:00:28]}  Rxe5 {[%clk 0:00:02]} 36. Re3 {[%clk 0:00:26]}  Rb5 {[%clk 0:00:02]} 37. Rd2 {[%clk 0:00:26]}  Be6 {[%clk 0:00:02]} 38. Rde2 {[%clk 0:00:22]}  f6 {[%clk 0:00:03]} 39. Rc2 {[%clk 0:00:20]}  g5 {[%clk 0:00:03]} 40. Kh2 {[%clk 0:00:17]}  Kf7 {[%clk 0:00:04]} 41. Rf2 {[%clk 0:00:15]}  Kg6 {[%clk 0:00:04]} 42. Rc2 {[%clk 0:00:15]}  Kf7 {[%clk 0:00:03]} 43. Rd2 {[%clk 0:00:15]}  Kg6 {[%clk 0:00:03]} 44. g3 {[%clk 0:00:15]}  Kf7 {[%clk 0:00:03]} 45. h4 {[%clk 0:00:16]}  gxh4 {[%clk 0:00:02]} 46. gxh4 {[%clk 0:00:17]}  Rh5 {[%clk 0:00:02]} 47. Kg3 {[%clk 0:00:17]}  Rb5 {[%clk 0:00:03]} 48. Kf4 {[%clk 0:00:17]}  Rh5 {[%clk 0:00:02]} 49. Rh2 {[%clk 0:00:17]}  Bc4 {[%clk 0:00:01]} 50. Rg3 {[%clk 0:00:17]} 1-0


[Site "https://www.chess.com"]

[Event "Titled Tuesday Blitz April 05 Late 2022"]
[White "Ashiev, Eduard"]
[Black "Romanchuk, Viktor"]
[WhiteFideId "4130090"]
[BlackFideId "14109271"]
[WhiteElo "2004"]
[BlackElo "2242"]
[Result "0-1"]
[Round "03"]
[TimeControl "180+1"]
[Date "2022.04.06"]
[WhiteClock "0:00:21"]
[BlackClock "0:01:08"]

1. d4 {[%clk 0:03:00]}  d5 {[%clk 0:02:59]} 2. c4 {[%clk 0:03:00]}  c6 {[%clk 0:02:59]} 3. Nf3 {[%clk 0:02:59]}  Nf6 {[%clk 0:02:59]} 4. Nc3 {[%clk 0:02:58]}  e6 {[%clk 0:02:58]} 5. e3 {[%clk 0:02:58]}  Nbd7 {[%clk 0:02:57]} 6. b3 {[%clk 0:02:58]}  Bb4 {[%clk 0:02:55]} 7. Bd2 {[%clk 0:02:58]}  Bd6 {[%clk 0:02:54]} 8. Be2 {[%clk 0:02:57]}  O-O {[%clk 0:02:54]} 9. O-O {[%clk 0:02:57]}  Qe7 {[%clk 0:02:54]} 10. Qc2 {[%clk 0:02:57]}  b6 {[%clk 0:02:54]} 11. e4 {[%clk 0:02:51]}  dxe4 {[%clk 0:02:52]} 12. Nxe4 {[%clk 0:02:51]}  Nxe4 {[%clk 0:02:53]} 13. Qxe4 {[%clk 0:02:51]}  Bb7 {[%clk 0:02:54]} 14. Bd3 {[%clk 0:02:47]}  Nf6 {[%clk 0:02:38]} 15. Qh4 {[%clk 0:02:46]}  c5 {[%clk 0:02:38]} 16. dxc5 {[%clk 0:02:01]}  Bxc5 {[%clk 0:02:37]} 17. Bc3 {[%clk 0:01:41]}  h6 {[%clk 0:02:36]} 18. Ne5 {[%clk 0:01:24]}  Ne4 {[%clk 0:02:16]} 19. Qxe7 {[%clk 0:01:18]}  Bxe7 {[%clk 0:02:14]} 20. Bb2 {[%clk 0:01:09]}  Rfd8 {[%clk 0:02:06]} 21. Rad1 {[%clk 0:01:09]}  Bc5 {[%clk 0:01:48]} 22. Bxe4 {[%clk 0:00:49]}  Bxe4 {[%clk 0:01:46]} 23. Rfe1 {[%clk 0:00:46]}  Bb7 {[%clk 0:01:38]} 24. Kf1 {[%clk 0:00:38]}  Bb4 {[%clk 0:01:35]} 25. Rxd8+ {[%clk 0:00:31]}  Rxd8 {[%clk 0:01:36]} 26. Rc1 {[%clk 0:00:30]}  Rd2 {[%clk 0:01:27]} 27. Bc3 {[%clk 0:00:25]}  Bxc3 {[%clk 0:01:23]} 28. Rxc3 {[%clk 0:00:24]}  Rxa2 {[%clk 0:01:24]} 29. c5 {[%clk 0:00:24]}  Ba6+ {[%clk 0:01:10]} 30. Ke1 {[%clk 0:00:21]}  Re2+ {[%clk 0:01:08]} 31. Kd1 {[%clk 0:00:21]}  Rxe5 {[%clk 0:01:08]} 32. cxb6 {[%clk 0:00:21]}  axb6 {[%clk 0:01:08]} 0-1


[Site "https://www.chess.com"]

[Event "Titled Tuesday Blitz April 05 Late 2022"]
[White "Babazada, Khazar"]
[Black "Javakhadze, Zurab"]
[WhiteFideId "13413554"]
[BlackFideId "13603647"]
[WhiteElo "2406"]
[BlackElo "2381"]
[Result "1-0"]
[Round "03"]
[TimeControl "180+1"]
[Date "2022.04.05"]
[WhiteClock "0:00:33"]
[BlackClock "0:00:06"]

1. Nf3 {[%clk 0:03:00]}  d5 {[%clk 0:02:59]} 2. g3 {[%clk 0:03:01]}  Nf6 {[%clk 0:02:57]} 3. Bg2 {[%clk 0:03:01]}  e6 {[%clk 0:02:55]} 4. O-O {[%clk 0:03:02]}  Be7 {[%clk 0:02:55]} 5. b3 {[%clk 0:03:02]}  O-O {[%clk 0:02:53]} 6. Bb2 {[%clk 0:03:03]}  b6 {[%clk 0:02:51]} 7. d3 {[%clk 0:03:04]}  Bb7 {[%clk 0:02:51]} 8. Nbd2 {[%clk 0:03:04]}  a5 {[%clk 0:02:47]} 9. a3 {[%clk 0:03:03]}  c5 {[%clk 0:02:42]} 10. a4 {[%clk 0:03:02]}  Ra7 {[%clk 0:02:30]} 11. e4 {[%clk 0:03:02]}  dxe4 {[%clk 0:02:28]} 12. dxe4 {[%clk 0:02:39]}  Nxe4 {[%clk 0:02:28]} 13. Nc4 {[%clk 0:02:39]}  Nd6 {[%clk 0:02:17]} 14. Nxd6 {[%clk 0:02:39]}  Qxd6 {[%clk 0:02:16]} 15. Qe2 {[%clk 0:02:38]}  Nc6 {[%clk 0:02:11]} 16. Rad1 {[%clk 0:02:37]}  Qc7 {[%clk 0:02:11]} 17. h4 {[%clk 0:02:35]}  Raa8 {[%clk 0:02:11]} 18. h5 {[%clk 0:02:35]}  h6 {[%clk 0:02:11]} 19. g4 {[%clk 0:02:23]}  Rad8 {[%clk 0:02:11]} 20. g5 {[%clk 0:02:23]}  Bxg5 {[%clk 0:02:01]} 21. Nxg5 {[%clk 0:02:06]}  hxg5 {[%clk 0:02:02]} 22. h6 {[%clk 0:02:07]}  Nd4 {[%clk 0:01:43]} 23. Qh5 {[%clk 0:02:07]}  Qf4 {[%clk 0:01:26]} 24. Bxb7 {[%clk 0:02:01]}  gxh6 {[%clk 0:01:08]} 25. Qxh6 {[%clk 0:01:38]}  Rd7 {[%clk 0:00:48]} 26. Bg2 {[%clk 0:01:24]}  Rfd8 {[%clk 0:00:47]} 27. Rd3 {[%clk 0:01:23]}  f6 {[%clk 0:00:34]} 28. Rh3 {[%clk 0:01:22]}  e5 {[%clk 0:00:14]} 29. c4 {[%clk 0:00:47]}  Ne2+ {[%clk 0:00:11]} 30. Kh1 {[%clk 0:00:44]}  Kf7 {[%clk 0:00:12]} 31. Rf3 {[%clk 0:00:34]}  Qh4+ {[%clk 0:00:06]} 32. Qxh4 {[%clk 0:00:34]}  gxh4 {[%clk 0:00:07]} 33. Bxe5 {[%clk 0:00:34]}  Ke6 {[%clk 0:00:07]} 34. Bxf6 {[%clk 0:00:32]}  Rf8 {[%clk 0:00:06]} 35. Bh3+ {[%clk 0:00:33]} 1-0


[Site "https://www.chess.com"]

[Event "Titled Tuesday Blitz April 05 Late 2022"]
[White "Bachmann, Axel"]
[Black "Khanin, Semen"]
[WhiteFideId "3700488"]
[BlackFideId "4111990"]
[WhiteElo "2587"]
[BlackElo "2442"]
[Result "1-0"]
[Round "03"]
[TimeControl "180+1"]
[Date "2022.04.06"]
[WhiteClock "0:00:04"]
[BlackClock "0:00:04"]

1. d4 {[%clk 0:03:00]}  Nf6 {[%clk 0:02:59]} 2. g3 {[%clk 0:03:01]}  d5 {[%clk 0:02:59]} 3. Nf3 {[%clk 0:03:00]}  Bf5 {[%clk 0:02:54]} 4. c4 {[%clk 0:03:00]}  e6 {[%clk 0:02:54]} 5. Nc3 {[%clk 0:03:00]}  c6 {[%clk 0:02:52]} 6. Nh4 {[%clk 0:02:59]}  Bg6 {[%clk 0:02:51]} 7. Qb3 {[%clk 0:02:57]}  Qb6 {[%clk 0:02:51]} 8. Nxg6 {[%clk 0:02:58]}  hxg6 {[%clk 0:02:50]} 9. c5 {[%clk 0:02:56]}  Qc7 {[%clk 0:02:42]} 10. Bf4 {[%clk 0:02:56]}  Qc8 {[%clk 0:02:43]} 11. Bg2 {[%clk 0:02:52]}  Nbd7 {[%clk 0:02:43]} 12. O-O {[%clk 0:02:36]}  Be7 {[%clk 0:02:40]} 13. Qc2 {[%clk 0:02:15]}  Bd8 {[%clk 0:02:27]} 14. b4 {[%clk 0:02:14]}  Bc7 {[%clk 0:02:27]} 15. Bxc7 {[%clk 0:02:12]}  Qxc7 {[%clk 0:02:28]} 16. a4 {[%clk 0:02:12]}  e5 {[%clk 0:02:26]} 17. e3 {[%clk 0:02:11]}  e4 {[%clk 0:02:26]} 18. b5 {[%clk 0:02:11]}  g5 {[%clk 0:02:16]} 19. a5 {[%clk 0:02:00]}  g6 {[%clk 0:02:06]} 20. a6 {[%clk 0:01:56]}  b6 {[%clk 0:02:03]} 21. cxb6 {[%clk 0:01:41]}  Nxb6 {[%clk 0:02:03]} 22. Na4 {[%clk 0:01:31]}  Nc4 {[%clk 0:02:01]} 23. bxc6 {[%clk 0:01:22]}  Qxc6 {[%clk 0:01:57]} 24. Rfc1 {[%clk 0:01:22]}  Rc8 {[%clk 0:01:52]} 25. Bf1 {[%clk 0:01:13]}  Kf8 {[%clk 0:01:47]} 26. Nc5 {[%clk 0:01:10]}  Kg7 {[%clk 0:01:45]} 27. Bxc4 {[%clk 0:00:55]}  dxc4 {[%clk 0:01:45]} 28. Qxc4 {[%clk 0:00:56]}  Ng4 {[%clk 0:01:45]} 29. d5 {[%clk 0:00:40]}  Qf6 {[%clk 0:01:38]} 30. Qd4 {[%clk 0:00:22]}  Qxd4 {[%clk 0:01:32]} 31. exd4 {[%clk 0:00:23]}  f5 {[%clk 0:01:00]} 32. h3 {[%clk 0:00:22]}  Nf6 {[%clk 0:00:49]} 33. d6 {[%clk 0:00:23]}  Rce8 {[%clk 0:00:41]} 34. Rab1 {[%clk 0:00:22]}  Rxh3 {[%clk 0:00:37]} 35. Rb7+ {[%clk 0:00:21]}  Kh6 {[%clk 0:00:37]} 36. Rf7 {[%clk 0:00:16]}  e3 {[%clk 0:00:23]} 37. Rxf6 {[%clk 0:00:16]}  exf2+ {[%clk 0:00:23]} 38. Kxf2 {[%clk 0:00:13]}  Rh2+ {[%clk 0:00:23]} 39. Kg1 {[%clk 0:00:10]}  Ree2 {[%clk 0:00:23]} 40. Nd3 {[%clk 0:00:09]}  Reg2+ {[%clk 0:00:16]} 41. Kf1 {[%clk 0:00:09]}  Rd2 {[%clk 0:00:14]} 42. Kg1 {[%clk 0:00:04]}  Rhg2+ {[%clk 0:00:11]} 43. Kf1 {[%clk 0:00:03]}  Rh2 {[%clk 0:00:06]} 44. Kg1 {[%clk 0:00:04]}  Rdg2+ {[%clk 0:00:03]} 45. Kf1 {[%clk 0:00:04]}  Rxg3 {[%clk 0:00:04]} 46. d7 {[%clk 0:00:02]}  Rf3+ {[%clk 0:00:01]} 47. Kg1 {[%clk 0:00:02]}  Rfh3 {[%clk 0:00:01]} 48. d8=Q {[%clk 0:00:02]}  Rh1+ {[%clk 0:00:02]} 49. Kf2 {[%clk 0:00:02]}  R1h2+ {[%clk 0:00:02]} 50. Ke1 {[%clk 0:00:02]}  Re3+ {[%clk 0:00:02]} 51. Kd1 {[%clk 0:00:02]}  Rxd3+ {[%clk 0:00:03]} 52. Ke1 {[%clk 0:00:03]}  Re3+ {[%clk 0:00:03]} 53. Kf1 {[%clk 0:00:03]}  Rf3+ {[%clk 0:00:04]} 54. Kg1 {[%clk 0:00:04]}  Rh4 {[%clk 0:00:04]} 55. Qh8# {[%clk 0:00:04]} 1-0


[Site "https://www.chess.com"]